[Event "16th Serbian-ch Women 2022"]
[Site "Bajina Basta"]
[Date "2022.12.12"]
[Round "7.3"]
[White "Chelushkina, Irina"]
[Black "Grozdanovic, Anastasia"]
[Result "1-0"]
[ECO "B15"]
[WhiteElo "2173"]
[BlackElo "1870"]
[Annotator "TA"]
[PlyCount "71"]
[EventDate "2022.12.06"]
[EventType "tourn"]
[EventCountry "SRB"]
[SourceTitle "playchess.com"]
[Source "ChessBase"]
[SourceQuality "1"]
[TimeControl "40/5400+30:1800+30"]

{[%evp 11,71,24,25,25,25,26,32,12,25,0,12,24,25,31,16,0,34,43,44,42,33,47,46,39,37,28,35,35,47,36,65,62,66,3,27,12,29,19,62,53,60,64,63,73,517,509,647,511,511,511,511,511,511,511,511,511,523,516,515,499,925,899]} 1. e4 {[%emt 0:00:06]} c6 {[%emt 0:00:13]} 2. Nc3 {[%emt 0:00:50]} d5 {[%emt 0:00:08]} 3. Nf3 {[%emt 0:00:10]} g6 {[%emt 0:00:23]} 4. d4 {[%emt 0:02:24]} Bg7 {[%emt 0:00:20]} 5. Be2 {[%emt 0:01:33]} Bg4 {[%emt 0:00:58]} 6. exd5 {[%emt 0:01:48]} cxd5 {[%emt 0:00:16]} 7. h3 {[%emt 0:00:11] B15: Caro-Kann: 3 Nc3: 3...g6 and 3...dxe4 4 Nxe4 Nf6 5 Nxf6+ exf6.} Bxf3 {[%emt 0:03:46]} 8. Bxf3 {[%emt 0:02:39]} ({Much weaker is} 8. gxf3 Nc6 9. Bb5 Nh6 10. Bxh6 Bxh6 $17) 8... Nf6 {[%emt 0:00:35]} 9. O-O {[%emt 0:00:47] White is slightly better.} O-O {[%emt 0:00:42]} 10. Bg5 {[%emt 0:07:34]} e6 {[%emt 0:02:05]} 11. Ne2 {[%emt 0:02:12]} Nc6 {[%emt 0:02:19]} 12. c3 {[%emt 0:00:06]} b5 {[%emt 0:08:36] [#]} 13. a4 $146 {[%emt 0:05:12]} ({Predecessor:} 13. Qd2 Re8 14. h4 Qb6 15. Rae1 e5 16. Bxd5 Nxd5 17. h5 exd4 18. Nxd4 Nxd4 19. Rxe8+ Rxe8 20. cxd4 Qxd4 {0-1 (39) Heiser,J (819)-Kalinin,V (1641) LSS email 2019}) 13... Qb6 {[%emt 0:09:09]} 14. axb5 {[%emt 0:05:03]} Qxb5 {[%emt 0:01:26]} 15. Qa4 {[%emt 0:01:10]} Rfb8 {[%emt 0:03:09]} 16. Qxb5 {[%emt 0:06:41]} Rxb5 {[%emt 0:00:05]} 17. Ra6 {[%emt 0:00:52]} Rc8 {[%emt 0:05:29]} 18. b4 {[%emt 0:00:39]} Nd7 {[%emt 0:06:46]} 19. Nc1 {[%emt 0:07:55]} e5 {[%emt 0:13:26]} 20. Be2 {[%emt 0:14:59]} (20. Bg4 $5 {[%cal Rg4d7]} f5 21. Be2 $14) 20... Rb6 {[%emt 0:04:15]} 21. dxe5 $1 {[%emt 0:03:05]} Bxe5 {[%emt 0:03:00]} 22. Na2 {[%emt 0:02:38]} (22. Ra3 $1 $14) 22... d4 {[%emt 0:04:49]} 23. Rxb6 {[%emt 0:00:19]} axb6 {[%emt 0:04:10]} 24. b5 {[%emt 0:08:17]} Na5 {[%emt 0:01:01]} 25. cxd4 {[%emt 0:01:11]} Bxd4 {[%emt 0:00:57]} 26. Rd1 $36 {[%emt 0:01:46][%mdl 2048] White has the initiative.} Nb3 {[%emt 0:01:38]} 27. Nb4 {[%emt 0:02:03] [#] Prevents Rc2. Threatens to win with Nc6.} Nf6 $2 {[%emt 0:03:06][%mdl 8192] This costs Black the game.} (27... Ne5 $16 {is more resistant.}) 28. Nc6 $18 {[%emt 0:00:41] White is clearly winning.} Nd5 {[%emt 0:05:33]} 29. Bc4 {[%emt 0:04:02] A strong pair of Bishops.} ({Not} 29. Rxd4 Nxd4 30. Nxd4 Rc5 $18) 29... Nc3 {[%emt 0:00:44]} 30. Rxd4 {[%emt 0:03:48]} Nxd4 {[%emt 0:00:06]} 31. Ne7+ {[%emt 0:00:04]} Kg7 {[%emt 0:00:27]} 32. Nxc8 {[%emt 0:00:03]} Ndxb5 {[%emt 0:00:15]} 33. Nxb6 {[%emt 0:00:09]} Nd6 {[%emt 0:00:43]} 34. Bd3 {[%emt 0:00:33]} f6 {[%emt 0:01:18]} 35. Be3 {[%emt 0:00:24]} Na2 {[%emt 0:02:14]} (35... Nf7 $142 36. f3 Nd6) 36. Bd2 {[%emt 0:00:56] Weighted Error Value: White=0.14 (very precise) /Black=0.41} 1-0

[Event "16th Serbian-ch Women 2022"]
[Site "Bajina Basta"]
[Date "2022.12.12"]
[Round "7.4"]
[White "Gajcin, Marina"]
[Black "Srdanovic, Jovana"]
[Result "1-0"]
[ECO "B51"]
[WhiteElo "2219"]
[BlackElo "2189"]
[Annotator "TA"]
[PlyCount "67"]
[EventDate "2022.12.06"]
[EventType "tourn"]
[EventCountry "SRB"]
[SourceTitle "playchess.com"]
[Source "ChessBase"]
[SourceQuality "1"]
[TimeControl "40/5400+30:1800+30"]

{[%evp 9,67,0,26,19,20,8,6,14,26,25,25,11,9,10,16,8,16,-10,-10,-10,-10,-10,-10,-10,-10,-10,-2,-6,0,-7,73,82,82,74,114,87,111,78,222,137,123,141,115,85,72,77,118,92,493,486,1338,1274,29981,29982,5585,1101,1079,670,641,613]} 1. e4 {[%emt 0:00:04]} c5 {[%emt 0:00:08]} 2. Nf3 {[%emt 0:00:07]} Nc6 {[%emt 0:00:06]} 3. Bb5 {[%emt 0:00:12]} d6 {[%emt 0:00:16]} 4. Bxc6+ {[%emt 0:01:20]} bxc6 {[%emt 0:00:05]} 5. e5 {[%emt 0:00:44]} d5 {[%emt 0:04:05]} 6. d3 {[%emt 0:04:00] B51: Sicilian: Moscow Variation (3 Bb5+) without 3...Bd7.} Bg4 {[%emt 0:13:50]} 7. h3 {[%emt 0:07:10]} Bxf3 {[%emt 0:02:49]} 8. Qxf3 {[%emt 0:00:07][%cal Oe5e6] The position is equal.} Qc7 {[%emt 0:00:13] Inhibits e6.} 9. Qe2 {[%emt 0:04:16]} e6 {[%emt 0:04:47] [#]} 10. Nd2 $146 {[%emt 0:14:34]} ({Predecessor:} 10. O-O Ne7 11. Nd2 Nc8 12. b3 Be7 13. Re1 O-O 14. Qg4 Qd7 15. Nf3 f5 16. Qg3 {1-0 (64) Miladinovic,L (2023)-Milanovic,M (1747) Novi Sad 2010}) 10... Ne7 {[%emt 0:05:36]} 11. Nf3 {[%emt 0:05:11]} Nf5 {[%emt 0:10:36]} 12. c3 {[%emt 0:01:29]} h5 {[%emt 0:05:32]} 13. h4 {[%emt 0:03:50]} Be7 {[%emt 0:06:59]} 14. Bg5 {[%emt 0:05:38]} Rb8 {[%emt 0:02:40]} 15. Bxe7 {[%emt 0:17:31]} Qxe7 {[%emt 0:12:37]} 16. b3 {[%emt 0:03:14]} a5 {[%emt 0:03:03][%cal Ba7a5,Ba5a4][%mdl 32]} 17. g3 {[%emt 0:01:55]} Qa7 {[%emt 0:01:56]} 18. Kf1 {[%emt 0:02:06]} a4 {[%emt 0:03:11]} 19. Kg2 {[%emt 0:00:46]} Ke7 {[%emt 0:00:51]} (19... Rb5 $11) 20. Qd2 $1 $16 {[%emt 0:02:26]} Qa5 {[%emt 0:01:04]} 21. Rhc1 {[%emt 0:06:15]} Rb7 {[%emt 0:04:17]} 22. Qg5+ {[%emt 0:02:22]} f6 {[%emt 0:01:01]} 23. Qf4 {[%emt 0:00:52] And now Re1 would win.} (23. Qd2 {simplifies} Kf8 24. Re1 Kf7 25. Qe2) 23... Ra8 {[%emt 0:00:58]} (23... Kf7 $16) 24. exf6+ {[%emt 0:01:59]} gxf6 {[%emt 0:00:06]} 25. Re1 {[%emt 0:00:57]} Ng7 {[%emt 0:00:38]} (25... Kd7 $2 26. Rxe6 $1 Kxe6 27. Re1+ Kd7 28. Qxf5+ Kc7 29. Qxf6) 26. b4 {[%emt 0:03:50]} ({But not} 26. Qh6 Kf7) 26... Qc7 {[%emt 0:03:44] White must now prevent ...Qxf4.} 27. Qh6 $36 {[%emt 0:01:56][%mdl 2048] Black is under strong pressure.} ({Much worse is} 27. bxc5 Qxf4 28. gxf4 Ra5 $15) 27... Kf7 {[%emt 0:00:10]} 28. bxc5 {[%emt 0:00:49] Qh7 is the strong threat. White is much more active.} e5 $2 {[%emt 0:00:19][%mdl 8192]} (28... Rb2 $16) 29. Rxe5 $1 $18 {[%emt 0:05:54]} ({Weaker is} 29. Qh7 Rf8 $16) 29... Rg8 {[%emt 0:03:36] [#]} (29... fxe5 $142 30. Ng5+ Ke8 31. Qh8+ Kd7 32. Qxa8 Qb8 33. Qxa4 Qa7) 30. Rae1 $1 {[%emt 0:01:26][%cal Oe5g5] Threatening mate with Rg5!} Qc8 {[%emt 0:00:27] [#]} (30... fxe5 31. Nxe5+) 31. Rg5 $3 {[%emt 0:00:42][%mdl 512]} Qd8 {[%emt 0:00:57] [#]} 32. Rg6 {[%emt 0:01:27]} (32. Re3 $142 $1 Rc7 (32... Kf8 33. Nd4) 33. Qg6+ Kf8 {[#]} 34. Nd4 $1) 32... Nf5 {[%emt 0:01:44]} 33. Rxg8 {[%emt 0:00:19]} Qxg8 {[%emt 0:00:07]} 34. Qxh5+ {[%emt 0:00:14] Weighted Error Value: White=0.29 (precise) /Black=0.62} 1-0

[Event "16th Serbian-ch Women 2022"]
[Site "Bajina Basta"]
[Date "2022.12.12"]
[Round "7.5"]
[White "Manakova, Maria"]
[Black "Drljevic, Ljilja"]
[Result "1/2-1/2"]
[ECO "B06"]
[WhiteElo "2160"]
[BlackElo "2175"]
[Annotator "TA"]
[PlyCount "85"]
[EventDate "2022.12.06"]
[EventType "tourn"]
[EventCountry "SRB"]
[SourceTitle "playchess.com"]
[Source "ChessBase"]
[SourceQuality "1"]
[TimeControl "40/5400+30:1800+30"]

{[%evp 11,85,23,28,27,14,14,21,9,24,18,35,0,12,0,0,0,0,0,0,0,0,0,0,-109,-106,-118,-106,-213,-197,-205,-196,-243,-237,-511,-507,-620,-609,-594,-604,-614,-51,-41,-55,-53,-47,-43,-58,-90,-95,-95,-99,-112,-108,-97,-85,-132,-149,-147,-46,-324,-160,-120,-9,-9,0,-14,-12,-21,0,0,0,0,0,0,0,0]} 1. e4 {[%emt 0:00:30]} g6 {[%emt 0:00:05]} 2. d4 {[%emt 0:00:26]} Bg7 {[%emt 0:00:03]} 3. Nc3 {[%emt 0:00:21]} d6 {[%emt 0:00:17]} 4. Be3 {[%emt 0:01:26]} a6 {[%emt 0:00:31]} 5. Qd2 {[%emt 0:03:49]} b5 {[%emt 0:01:13]} 6. a4 {[%emt 0:00:33]} b4 {[%emt 0:00:26]} 7. Nd1 {[%emt 0:00:36] B06: Modern Defence.} Nf6 {[%emt 0:01:59]} 8. f3 {[%emt 0:00:24]} a5 {[%emt 0:00:33]} 9. c3 {[%emt 0:11:31]} bxc3 {[%emt 0:00:10]} 10. bxc3 {[%emt 0:00:13]} Ba6 {[%emt 0:04:35] [#]} 11. Be2 $146 {[%emt 0:04:02]} ({Predecessor:} 11. Bd3 Nbd7 12. Nf2 Qc8 13. Ne2 Bxd3 14. Qxd3 O-O 15. O-O Nb6 16. Rfb1 Qa6 17. Qxa6 Rxa6 {½-½ (35) Olsarova,K (2303)-Pastircak,M (2288) Czech Republic 2019}) 11... Nbd7 {[%emt 0:04:52]} 12. Bxa6 {[%emt 0:06:32]} Rxa6 {[%emt 0:00:04]} 13. Ne2 {[%emt 0:00:47]} O-O {[%emt 0:05:00]} 14. O-O {[%emt 0:10:42]} Qa8 {[%emt 0:31:52]} 15. Nf2 {[%emt 0:12:16]} Rb6 {[%emt 0:07:49]} 16. Nd3 {[%emt 0:00:26]} Rfb8 {[%emt 0:05:12]} 17. e5 {[%emt 0:09:11]} (17. c4 $11 {keeps the balance.}) 17... Nd5 $17 {[%emt 0:03:35]} 18. f4 {[%emt 0:00:48]} Rb3 {[%emt 0:05:31]} 19. Ndc1 {[%emt 0:23:07]} (19. c4 $17 Nxe3 20. Qxe3) 19... Rb2 $19 {[%emt 0:02:23]} 20. Qd3 {[%emt 0:00:04]} N7b6 {[%emt 0:02:48][%cal Ob6c4]} 21. Rf3 {[%emt 0:06:22]} (21. Bf2 $142) 21... Qc6 {[%emt 0:02:03] ...Nc4 is the strong threat.} 22. Qe4 $2 {[%emt 0:00:10]} (22. Bf2) 22... Nc4 {[%emt 0:01:35]} (22... Nxa4 $2 23. Rxa4 Qxa4 24. Qxd5 $19) 23. Rh3 {[%emt 0:05:33]} f5 {[%emt 0:06:19]} (23... Ncxe3 $2 24. Rxe3 Qc4 25. Rg3 $19) 24. exf6 {[%emt 0:00:12]} exf6 {[%emt 0:00:03]} 25. Bf2 {[%emt 0:00:46]} f5 $2 {[%emt 0:04:05]} ({Black should try} 25... Re8 $19 26. Qf3 f5) 26. Qe6+ $15 {[%emt 0:00:48]} Kh8 {[%emt 0:03:16] White must now prevent ...Rd2.} 27. Qxg6 {[%emt 0:00:08][%csl Gh3][%cal Rg6h7]} Nf6 {[%emt 0:00:06]} 28. Qxf5 {[%emt 0:00:24]} Re8 {[%emt 0:01:54]} (28... Rd2 29. Rd3 $14) 29. d5 {[%emt 0:01:23]} Qxd5 {[%emt 0:00:54] ( -> ...Qd1+)} 30. Qxd5 {[%emt 0:00:50]} Nxd5 {[%emt 0:00:03]} 31. Rd3 {[%emt 0:00:04]} c6 {[%emt 0:01:00][%cal Bc7c6,Bc6c5][%mdl 32]} (31... Rexe2 $2 32. Nxe2 c6 33. Re1 $18) 32. Nd4 {[%emt 0:01:00]} c5 {[%emt 0:04:58]} (32... Nxf4 $6 33. Rf3 Rf8 34. Nxc6 $15) 33. Nb5 {[%emt 0:00:34]} (33. Nde2 $142 Nf6 34. Bg3) 33... Nxf4 $17 {[%emt 0:00:35]} 34. Rf3 {[%emt 0:00:10]} Be5 {[%emt 0:00:57]} (34... Ne2+ $17 35. Nxe2 Rexe2) 35. Bg3 $2 {[%emt 0:00:57][%mdl 8192]} (35. Nd3 $15 Nxd3 36. Rxd3) 35... Rxg2+ {[%emt 0:00:40]} ({And not} 35... Nxg2 36. Nd3 Rd2 37. Nxe5 dxe5 38. Nc7 $15) (35... Nd2 $1 $19 {is more deadly.} 36. Re3 (36. Rxf4 $2 {perishes.} Bxf4 37. Nd3 Be3+ 38. Kh1 Ne4 $19) 36... Bd4 $1 {[%mdl 512]} 37. Nxd4 (37. cxd4 $2 {loses.} Rxe3 38. Nxd6 Ne4 $19) 37... Rxe3 38. Bxf4 Re1+ 39. Kf2 Rf1+ 40. Ke2 Rxf4) 36. Kh1 {[%emt 0:00:06] [#]} Rd2 {[%emt 0:00:22]} 37. Nb3 $132 {[%emt 0:00:26][%cal Ob3d2][%mdl 2048] White puts up resistance. The position is equal.} Rb2 {[%emt 0:00:37] Strongly threatening ...Ne2.} 38. Nxc5 {[%emt 0:00:38]} dxc5 {[%emt 0:00:24]} (38... Ne2 $5 39. Nd3 $8 Nxg3+ 40. Rxg3 Rxb5 41. axb5 Bxg3 42. hxg3 Rb8 $15) 39. Bxf4 {[%emt 0:00:03]} Bxf4 {[%emt 0:00:24]} 40. Rxf4 {[%emt 0:00:02]} Ree2 {[%emt 0:00:41]} 41. Rxc4 {[%emt 0:07:53] Threatens to win with Rh4.} Rxh2+ {[%emt 0:00:09]} 42. Kg1 {[%emt 0:00:03] And now Rg4 would win.} Rhg2+ {[%emt 0:00:09]} 43. Kh1 {[%emt 0:00:20] Weighted Error Value: White=0.49/Black=0.33} 1/2-1/2

[Event "16th Serbian-ch Women 2022"]
[Site "Bajina Basta"]
[Date "2022.12.13"]
[Round "8.1"]
[White "Eric, Jovana"]
[Black "Drljevic, Ljilja"]
[Result "1/2-1/2"]
[ECO "B08"]
[WhiteElo "2245"]
[BlackElo "2175"]
[Annotator "TA"]
[PlyCount "142"]
[EventDate "2022.12.06"]
[EventType "tourn"]
[EventCountry "SRB"]
[SourceTitle "playchess.com"]
[Source "ChessBase"]
[SourceQuality "1"]
[TimeControl "40/5400+30:1800+30"]

{[%evp 12,142,15,1,36,12,39,10,18,14,28,0,0,-20,-12,-14,28,-5,0,-13,0,4,37,39,27,4,109,35,52,22,27,22,53,12,16,0,29,16,118,83,104,80,87,85,90,108,101,0,0,0,0,0,139,81,97,52,52,52,49,47,48,39,39,32,32,32,53,32,32,32,32,19,20,0,0,0,0,0,0,0,0,0,37,0,0,0,0,0,0,0,0,0,0,0,0,0,0,0,0,0,0,0,0,0,0,0,0,0,0,0,0,0,0,0,0,0,0,0,0,0,0,0,0,0,0,0,0,0,0,0,0,0,0]} 1. e4 {[%emt 0:00:03]} g6 {[%emt 0:00:14]} 2. d4 {[%emt 0:00:10]} Bg7 {[%emt 0:00:09]} 3. Nc3 {[%emt 0:00:13]} d6 {[%emt 0:00:02]} 4. Be3 {[%emt 0:00:23]} a6 {[%emt 0:00:16]} 5. Nf3 {[%emt 0:00:33]} Nf6 {[%emt 0:01:47]} 6. h3 {[%emt 0:01:28]} O-O {[%emt 0:01:15]} 7. Bd3 {[%emt 0:01:35]} Nc6 {[%emt 0:01:22] B08: Pirc Defence: Classical System.} 8. d5 {[%emt 0:01:57]} Nb8 {[%emt 0:04:35]} 9. Qd2 {[%emt 0:03:21]} c6 {[%emt 0:10:46]} 10. Bh6 {[%emt 0:07:23] [#]} b5 $146 {[%emt 0:05:51]} ({Predecessor:} 10... Qb6 11. Bxg7 Kxg7 12. O-O-O Nbd7 13. Rhe1 Re8 14. g4 a5 15. Bf1 a4 16. a3 Ra5 {1-0 (32) Real de Azua,E (2442)-Henriquez Villagra,C (2604) Buenos Aires 2022}) 11. Bxg7 {[%emt 0:01:45]} (11. h4 {simplifies} Bxh6 12. Qxh6 Ng4 13. Qd2) 11... Kxg7 {[%emt 0:00:03]} 12. dxc6 {[%emt 0:07:31]} Nxc6 {[%emt 0:00:11]} 13. Nd5 {[%emt 0:03:53]} (13. O-O {simplifies} Ne5 14. Nxe5 dxe5 15. Qe3) 13... e6 {[%emt 0:09:22]} 14. Nxf6 {[%emt 0:03:26]} Qxf6 {[%emt 0:00:04]} 15. O-O-O {[%emt 0:00:11]} Bb7 {[%emt 0:03:17]} 16. Kb1 {[%emt 0:03:09]} Rfd8 {[%emt 0:04:53]} 17. Nh2 {[%emt 0:05:31]} e5 {[%emt 0:12:14] Inhibits f4.} 18. Ng4 {[%emt 0:03:15]} Qe6 {[%emt 0:11:15]} (18... Qf4 $11 {keeps the balance.}) 19. f4 {[%emt 0:12:54]} (19. Rhf1 $16) 19... exf4 $1 $14 {[%emt 0:03:59]} 20. Qxf4 {[%emt 0:00:27]} f6 $1 {[%emt 0:02:41]} 21. Rhf1 {[%emt 0:02:42] Threatens to win with Qh6+.} Rf8 $1 {[%emt 0:00:46]} 22. Qh6+ {[%emt 0:06:02]} Kg8 {[%emt 0:01:36]} 23. Qf4 {[%emt 0:09:39]} Nb4 {[%emt 0:09:58]} 24. b3 {[%emt 0:02:49] White wants to play Rf2.} ({Reject} 24. Nxf6+ Kg7 25. e5 Qxa2+ 26. Kc1 Qa4 $11) 24... Rac8 {[%emt 0:02:46]} (24... Nc6 $1 $11) 25. Nxf6+ {[%emt 0:04:45]} Kg7 {[%emt 0:00:33][%cal Rf8f6]} 26. e5 $36 {[%emt 0:00:14][%mdl 2048] White is on the roll.} Nxd3 {[%emt 0:07:20]} 27. Rxd3 {[%emt 0:00:07] Really sharp!} dxe5 {[%emt 0:01:17]} 28. Qh4 {[%emt 0:00:34][%csl Gf6][%cal Rh4h7]} h6 {[%emt 0:01:09] [#] And now ...Bc6 would win.} (28... Rxf6 $2 29. Rxf6 Qe8 30. Rfd6 $18) 29. Rd7+ {[%emt 0:05:00]} ({White has to play} 29. g4 $1 $16) 29... Qxd7 $1 $11 {[%emt 0:00:02]} 30. Nxd7 {[%emt 0:00:06] Threatening mate with Qe7+.} Rxf1+ {[%emt 0:00:02]} 31. Kb2 {[%emt 0:00:05] Strongly threatening Qe7+.} g5 {[%emt 0:01:01] [#]} (31... Bxg2 $2 32. Qe7+ Kg8 33. Nf6+ Rxf6 34. Qxf6 $18) (31... Re8 $1 $11) 32. Qg3 {[%emt 0:01:12]} (32. Qb4 $142 $1 {[%cal Rb4e7]}) 32... Rf4 $16 {[%emt 0:01:30]} 33. Nxe5 {[%emt 0:00:29]} Be4 {[%emt 0:00:32] Against Qd3} 34. Nd3 {[%emt 0:00:22]} Bxd3 {[%emt 0:02:32]} 35. Qxd3 $14 {[%emt 0:00:21][%mdl 4096] Endgame Qd7+ is the strong threat. KQ-KRR} Rcf8 {[%emt 0:00:20]} 36. g3 {[%emt 0:03:40]} Rf3 {[%emt 0:00:38]} 37. Qd4+ {[%emt 0:00:12]} R8f6 $1 {[%emt 0:00:23]} 38. Qg4 {[%emt 0:01:33]} Kh7 {[%emt 0:00:43]} 39. h4 {[%emt 0:01:44]} gxh4 $1 {[%emt 0:00:43]} 40. Qe4+ {[%emt 0:01:14]} Kg7 {[%emt 0:01:01]} 41. gxh4 {[%emt 0:30:07]} R3f4 {[%emt 0:30:58]} 42. Qe7+ {[%emt 0:03:44]} Kg6 {[%emt 0:00:00]} 43. Qe8+ {[%emt 0:00:00]} Rf7 {[%emt 0:00:00]} 44. a4 {[%emt 0:00:00]} bxa4 {[%emt 0:00:00]} 45. bxa4 {[%emt 0:00:00]} a5 {[%emt 0:00:00]} 46. c4 {[%emt 0:00:00]} R4f5 {[%emt 0:00:00] Prevents c5.} 47. c5 {[%emt 0:00:00]} Rxc5 {[%emt 0:00:00] The position is equal.} 48. Qg8+ {[%emt 0:00:00]} Kf6 {[%emt 0:00:00]} 49. Qd8+ {[%emt 0:00:00]} Kf5 {[%emt 0:00:00]} 50. Qd3+ {[%emt 0:00:00]} Ke5 {[%emt 0:00:00]} 51. Qe3+ {[%emt 0:00:00]} Kd6 {[%emt 0:00:07]} 52. Qxh6+ {[%emt 0:00:00]} Kc7 {[%emt 0:00:42]} 53. Qe3 {[%emt 0:00:00]} Rcf5 {[%emt 0:01:56] aiming for ...Rf2+.} 54. Qa7+ {[%emt 0:00:00]} Kd6 {[%emt 0:00:18]} 55. Qb6+ {[%emt 0:00:00]} Ke7 {[%emt 0:00:22]} 56. Qc7+ {[%emt 0:00:00]} Kf8 {[%emt 0:00:22]} 57. Qd6+ {[%emt 0:00:01]} Kg7 {[%emt 0:00:21]} 58. Qd4+ {[%emt 0:00:28]} Kh6 {[%emt 0:01:12]} 59. Qh8+ {[%emt 0:03:56]} Kg6 {[%emt 0:00:57]} 60. h5+ {[%emt 0:04:09]} Rxh5 {[%emt 0:00:47]} 61. Qg8+ {[%emt 0:00:10]} Kf6 {[%emt 0:00:36]} 62. Qd8+ {[%emt 0:00:09]} Kg7 {[%emt 0:00:28]} 63. Qd4+ {[%emt 0:00:07]} Rf6 {[%emt 0:00:39]} 64. Kc3 {[%emt 0:01:19]} Rhf5 {[%emt 0:01:27]} 65. Kd3 {[%emt 0:00:51]} Rf3+ {[%emt 0:00:48]} 66. Ke2 {[%emt 0:00:13]} R3f4 {[%emt 0:00:20]} 67. Qa7+ {[%emt 0:00:08]} Kg6 {[%emt 0:01:33]} 68. Qxa5 {[%emt 0:00:26]} Rf2+ {[%emt 0:00:45]} 69. Ke1 {[%emt 0:00:10]} Rf1+ {[%emt 0:00:37]} 70. Ke2 {[%emt 0:00:06]} R1f2+ {[%emt 0:00:21]} 71. Ke1 {[%emt 0:00:06]} Rf1+ {[%emt 0:00:40] Weighted Error Value: White=0.14 (very precise) /Black=0.12 (very precise)} 1/2-1/2

[Event "16th Serbian-ch Women 2022"]
[Site "Bajina Basta"]
[Date "2022.12.13"]
[Round "8.2"]
[White "Srdanovic, Jovana"]
[Black "Manakova, Maria"]
[Result "1-0"]
[ECO "D02"]
[WhiteElo "2189"]
[BlackElo "2160"]
[Annotator "TA"]
[PlyCount "61"]
[EventDate "2022.12.06"]
[EventType "tourn"]
[EventCountry "SRB"]
[SourceTitle "playchess.com"]
[Source "ChessBase"]
[SourceQuality "1"]
[TimeControl "40/5400+30:1800+30"]

{[%evp 9,61,9,9,10,10,0,2,0,2,0,0,-12,0,-7,17,20,57,30,31,21,21,19,55,53,48,61,53,58,68,69,79,97,99,-15,-12,-5,0,-66,-56,-159,-52,-72,-66,-111,-93,-77,-50,-102,-18,-17,43,44,927,877]} 1. d4 {[%emt 0:00:03]} Nf6 {[%emt 0:01:35]} 2. Nf3 {[%emt 0:00:07]} g6 {[%emt 0:00:08]} 3. Nbd2 {[%emt 0:00:07]} d5 {[%emt 0:00:19]} 4. b4 {[%emt 0:00:25]} Bg7 {[%emt 0:00:23]} 5. e3 {[%emt 0:00:22]} a5 {[%emt 0:00:27]} 6. b5 {[%emt 0:01:42] D02: 1 d4 d5 2 Nf3 sidelines, including 2...Nf6 3 g3 and 2...Nf6 3 Bf4.} c5 {[%emt 0:00:17]} 7. bxc6 {[%emt 0:06:40]} ({Don't play} 7. dxc5 Ne4 8. Ba3 Bc3 $15) 7... Nxc6 {[%emt 0:03:04] 7...Nxc6 scores better than 7...bxc6.} 8. c4 {[%emt 0:12:56] The position is equal.} O-O {[%emt 0:00:50]} 9. Bb2 {[%emt 0:00:56]} Bf5 {[%emt 0:03:36]} 10. a3 {[%emt 0:07:40] [#] Inhibits Nb4.} Ne4 $146 {[%emt 0:13:17]} ({Predecessor:} 10... dxc4 11. Bxc4 e5 12. Nxe5 Nxe5 13. dxe5 Ng4 14. Nf3 Qe7 15. O-O Rad8 16. Qb3 Be4 {½-½ (33) Mirzoev,A (2474)-Nagy,G (2471) Ceske Budejovice 2019}) 11. cxd5 {[%emt 0:07:04]} Qxd5 {[%emt 0:09:19]} (11... Nxd2 {simplifies} 12. Qxd2 Qxd5 13. Rc1 a4) 12. Bc4 {[%emt 0:08:29]} Qd6 {[%emt 0:06:54]} 13. O-O {[%emt 0:09:54]} Nxd2 {[%emt 0:17:06]} 14. Nxd2 {[%emt 0:04:53]} Rab8 {[%emt 0:00:28]} 15. Qe2 {[%emt 0:05:20]} e5 {[%emt 0:05:16][%cal Re5d4]} 16. d5 {[%emt 0:01:35]} b5 $1 {[%emt 0:05:45]} 17. Ba2 {[%emt 0:13:25] aiming for g4.} ({Much worse is} 17. Bxb5 Na7 18. e4 Nxb5 $15) 17... Nd8 {[%emt 0:05:55]} 18. Rfc1 {[%emt 0:04:46]} (18. g4 $5 {[%cal Rg4f5]} Bc8 19. Ne4 $14) 18... Re8 {[%emt 0:02:58]} 19. g4 {[%emt 0:06:44]} Bd7 {[%emt 0:08:49]} 20. Ne4 {[%emt 0:00:09]} Qb6 {[%emt 0:00:11]} 21. f3 {[%emt 0:04:54] White is more active.} (21. Qd1 $16) 21... Nb7 $1 $11 {[%emt 0:00:49]} 22. Rab1 {[%emt 0:01:33]} Rbc8 {[%emt 0:01:04]} 23. Kh1 {[%emt 0:01:05]} (23. Qd2 $1 $11) 23... Nd6 $15 {[%emt 0:00:50]} 24. Ng3 {[%emt 0:01:03]} (24. h3 $15) 24... Bh6 {[%emt 0:04:01]} ({Black should try} 24... Rxc1+ $17 25. Bxc1 e4 26. Nxe4 Nxe4 27. fxe4 Rxe4) 25. Rxc8 {[%emt 0:00:13]} Bxc8 {[%emt 0:00:09]} 26. Bc1 {[%emt 0:00:21][%cal Bb2c1,Bc1d2,Bd2a5,Ba5b4][%mdl 32]} Ba6 {[%emt 0:00:18]} 27. Qe1 {[%emt 0:00:45] Inhibits b4.} Rc8 {[%emt 0:04:09]} 28. Bd2 $1 {[%emt 0:00:08] [#]} Qc5 {[%emt 0:00:56]} (28... b4 $1 $17 {Threatening ...Nc4.} 29. axb4 a4) 29. Bxa5 $11 {[%emt 0:00:27]} Qxa3 {[%emt 0:00:05]} (29... Bxe3 $2 30. Bb4 Qb6 31. Bxd6 $18) (29... Qxe3 $11 30. Qxe3 Bxe3) 30. Bb3 $14 {[%emt 0:00:16] Strongly threatening Bb4.} Nc4 $2 {[%emt 0:02:53][%mdl 8192]} (30... Bb7 $14) 31. Bb4 {[%emt 0:00:36] Weighted Error Value: White=0.18 (very precise) /Black=0.19 (very precise)} 1-0